bitfinex/quotes_ETHUSD_20250511
["timestamp","ask_amount","ask_price","bid_price","bid_amount"]
[1747001521557,3.99075519,2505.8,2505.2,0.4033]
[1747001521724,6.93626792,2505.9,2505.2,0.80246922]
[1747001521929,2.94555556,2505.9,2505.2,0.4033]
[1747001522128,0.55,2505.7,2504.9,0.4033]
[1747001522333,2.94555556,2505.9,2505.0,0.03991643]
[1747001522629,3.9907869,2505.8,2505.3,0.39914479]
[1747001522852,3.99132096,2505.5,2505.1,0.4033]
[1747001523157,3.99132096,2505.5,2505.2,8.0]
[1747001523761,0.55,2505.8,2505.1,0.4033]
[1747001524056,3.99137113,2505.5,2505.1,0.4033]
[1747001524258,3.49555556,2505.6,2504.8,0.4033]
[1747001524414,3.99197216,2505.1,2504.5,0.4033]
[1747001524614,6.93696778,2505.4,2504.5,0.4033]
[1747001524615,2.94555556,2505.4,2504.5,0.4033]
[1747001524815,3.99249955,2504.7,2504.5,0.4033]
[1747001525161,3.99327082,2504.3,2504.1,0.4033]
[1747001525328,0.55,2504.7,2504.1,0.4033]
[1747001525518,3.99263001,2504.7,2504.1,0.80263598]
[1747001525712,6.67455556,2505.1,2504.2,0.03993125]
[1747001525921,3.99246639,2504.8,2504.2,0.03992648]
[1747001526368,3.99207537,2505.0,2504.4,0.3992889]
[1747001526369,3.99216141,2505.0,2504.4,0.3992889]
[1747001526529,3.99125683,2505.5,2505.1,8.0]
[1747001526859,0.8248,2505.8,2504.9,0.4033]
[1747001526860,3.99181335,2505.2,2504.9,0.4033]
[1747001527063,0.55,2505.7,2505.1,8.0]
[1747001527232,3.99137601,2505.5,2504.9,0.4033]
[1747001527435,3.9916272,2505.3,2504.9,0.4033]
[1747001527646,3.99135254,2505.5,2504.9,0.4033]
[1747001527812,3.99135254,2505.5,2504.9,0.80250486]
[1747001528017,0.55,2505.7,2504.9,0.4033]
[1747001528227,3.99175269,2505.2,2504.9,0.4033]
[1747001528558,3.99147533,2505.4,2505.3,8.0]
[1747001528718,3.99169925,2505.2,2504.9,0.4033]
[1747001528924,3.99145623,2505.4,2504.9,0.8025157]
[1747001529137,3.99145623,2505.4,2504.9,0.4033]
[1747001529457,3.99158518,2505.3,2504.9,0.4033]
[1747001529661,3.49555556,2505.7,2504.6,8.0]
[1747001529883,2.94555556,2505.7,2504.6,12.22824389]
[1747001530086,0.55,2505.7,2504.7,0.4033]
[1747001530296,3.99155121,2505.3,2504.8,0.39922329]
[1747001530445,3.99155121,2505.3,2504.7,0.80253769]
[1747001530883,3.99221601,2504.9,2504.7,0.4033]
[1747001531086,0.7588,2505.2,2504.4,0.4033]
[1747001531258,4.54137862,2505.4,2504.4,0.4033]
[1747001531586,3.9922943,2504.9,2504.4,0.4033]
[1747001531970,3.99154312,2505.3,2504.6,0.39925176]
[1747001532174,0.55,2505.4,2504.4,0.4033]
[1747001532350,3.99153793,2505.3,2504.6,0.39926433]
[1747001532541,3.99193077,2505.1,2504.6,0.39926433]
[1747001532747,3.99235468,2504.8,2504.4,0.60884289]
[1747001532947,3.99225853,2504.9,2504.8,3.992354]
[1747001533200,3.99225853,2504.9,2504.8,8.0]
[1747001533944,3.99206416,2505.0,2504.9,8.0]
[1747001534245,0.7814,2505.9,2505.4,8.533962]
[1747001534486,3.99096487,2505.7,2505.2,0.4033]
[1747001534672,0.7814,2506.3,2505.3,40.23196672]
[1747001534871,3.98995782,2506.3,2505.5,0.4033]
[1747001535072,0.05,2506.4,2505.7,8.0]
[1747001535272,3.99055862,2506.0,2505.7,8.0]
[1747001535589,3.98994533,2506.3,2506.1,12.211201]
[1747001535760,0.55,2506.3,2505.6,8.4033]
[1747001535965,3.99054701,2506.0,2505.6,0.4033]
[1747001536652,3.99059849,2505.9,2505.6,0.4033]
[1747001536857,3.99049712,2506.0,2505.6,0.4033]
[1747001537501,3.98995489,2506.3,2505.6,1.53693]
[1747001537799,0.05,2506.4,2505.7,9.61220476]
[1747001537956,0.05,2506.4,2505.9,8.39905193]
[1747001538162,0.05,2506.4,2506.1,8.0]
[1747001538358,0.05,2506.4,2506.3,8.0]
[1747001538592,0.05,2506.4,2506.3,17.533005]
[1747001538786,4.03978614,2506.4,2506.1,8.0]
[1747001538992,0.05,2506.4,2506.1,8.0]
[1747001539199,0.05,2506.4,2506.1,8.3990257]
[1747001539406,0.05,2506.4,2506.1,8.0]
[1747001539763,3.9899475,2506.3,2506.1,8.0]
[1747001539965,0.05,2506.4,2506.1,8.39902534]
[1747001540165,0.05,2506.4,2506.3,8.80229453]
[1747001540393,0.05,2506.4,2506.3,48.99434453]
[1747001540863,0.05,2506.4,2506.3,50.60654929]
[1747001541080,0.05,2506.4,2506.3,48.99434453]
[1747001541441,0.05,2506.4,2506.3,22.32575753]
[1747001541726,0.05,2506.4,2506.3,17.4273]
[1747001542806,0.05,2506.4,2506.3,17.216489]
[1747001543404,3.99042298,2506.0,2505.9,0.4033]
[1747001543597,3.99033273,2506.1,2505.9,0.4033]
[1747001543784,3.99003971,2506.3,2506.2,7.980553]
[1747001543980,0.05,2506.4,2505.6,0.4033]
[1747001544216,0.7936,2506.3,2505.7,0.17]
[1747001544412,3.99023645,2506.2,2505.6,0.80239538]
[1747001544626,3.99023645,2506.2,2505.6,2.313338]
[1747001545084,3.99043542,2506.0,2505.6,1.91424262]
[1747001545282,3.99063364,2505.9,2505.7,8.0]
[1747001545487,0.7936,2506.3,2505.6,3.74239919]
[1747001545687,3.99012536,2506.2,2505.7,0.0399075]
[1747001545887,3.99017809,2506.2,2505.7,8.39908896]
[1747001546138,4.03986511,2506.4,2505.7,8.43898917]
[1747001546287,4.03986511,2506.4,2505.8,1.17822892]
[1747001546487,3.99037983,2506.1,2505.7,8.0]
[1747001546739,3.99002347,2506.3,2506.2,8.0]
[1747001546893,3.99002347,2506.3,2505.7,8.39907837]
[1747001547292,0.05,2506.4,2505.7,9.61220476]
[1747001547536,0.05,2506.4,2505.9,8.4033]
[1747001547716,0.05,2506.4,2506.1,8.0]
[1747001547899,0.05,2506.4,2506.3,8.0]
[1747001548238,4.03980251,2506.4,2505.9,0.80234943]
[1747001548443,4.03980251,2506.4,2506.1,8.0]
[1747001548655,4.03980251,2506.4,2506.3,8.0]
[1747001548832,3.99031938,2506.1,2505.7,2.933]
[1747001549441,3.9904264,2506.0,2505.7,2.933]
[1747001549744,4.85312704,2506.4,2506.0,3.990426]
[1747001550039,3.99007251,2506.3,2505.8,8.39907299]
[1747001550239,4.0399158,2506.4,2505.9,1.1332073]
[1747001550412,4.03978962,2506.4,2505.8,8.0]
[1747001550610,3.99051371,2506.0,2505.8,8.0]
[1747001550938,3.98994533,2506.3,2505.8,8.0]
[1747001551096,3.99018893,2506.2,2505.8,8.0]
[1747001551295,0.05,2506.4,2505.8,8.0]
[1747001551497,0.05,2506.4,2506.0,8.0]
[1747001551701,0.05,2506.4,2506.1,23.121111]
[1747001551936,0.05,2506.4,2506.2,8.0]
[1747001552263,0.05,2506.4,2505.9,0.39905575]
[1747001552559,4.0398621,2506.4,2505.9,0.39905575]
[1747001552898,3.99005212,2506.3,2505.8,9.17353162]
[1747001553093,3.99005212,2506.3,2505.8,9.5725948]
[1747001553297,4.03981028,2506.4,2505.9,0.39904803]
[1747001553742,3.9900921,2506.3,2505.8,9.17353162]
[1747001553898,4.03984365,2506.4,2505.9,0.39905729]
[1747001554099,0.05,2506.4,2505.7,8.03990412]
[1747001554300,3.99007239,2506.3,2505.8,0.39907414]
[1747001554503,3.99007239,2506.3,2505.7,9.57561906]
[1747001554699,4.03979992,2506.4,2505.8,0.39907387]
[1747001554700,4.0399224,2506.4,2505.8,0.39907387]
[1747001554913,3.99004295,2506.3,2505.8,0.39907387]
[1747001555157,3.99004295,2506.3,2505.7,9.57561441]
[1747001555825,3.99013048,2506.2,2505.7,9.57561441]
[1747001556014,3.99027353,2506.1,2505.7,9.17653231]
[1747001556214,3.99027353,2506.1,2505.7,8.0]
[1747001556542,4.0398245,2506.4,2505.9,0.39905297]
[1747001556747,0.05,2506.4,2505.9,0.39905822]
[1747001556933,4.03989947,2506.4,2505.9,0.39905822]
[1747001557428,0.05,2506.4,2506.0,0.39904118]
[1747001557642,0.05,2506.4,2505.8,0.03990475]
[1747001557847,3.99005195,2506.3,2505.8,0.3990665]
[1747001558056,3.99005195,2506.3,2505.8,1.61151346]
[1747001558638,0.05,2506.4,2505.7,8.0]
[1747001558857,3.99033436,2506.1,2505.7,8.0]
[1747001559027,0.05,2506.4,2505.7,8.39908976]
[1747001559233,3.99003447,2506.3,2505.8,0.39906332]
[1747001559435,4.03980809,2506.4,2505.9,0.39905142]
[1747001559634,4.03980809,2506.4,2505.9,1.27886289]
[1747001560435,0.05,2506.4,2506.2,0.39901033]
[1747001560660,0.05,2506.4,2506.3,26.659658]
[1747001561039,0.05,2506.4,2506.3,23.136059]
[1747001561734,0.05,2506.4,2506.3,10.79283143]
[1747001561928,0.05,2506.4,2506.3,38.29344753]
[1747001562122,0.05,2506.4,2506.3,37.53652653]
[1747001562831,0.05,2506.4,2506.3,10.41449929]
[1747001563027,0.05,2506.4,2506.3,50.64643422]
[1747001563258,0.05,2506.4,2506.3,50.60654929]
[1747001563527,0.05,2506.4,2506.3,54.7087768]
[1747001567531,0.05,2506.4,2506.3,14.5167268]
[1747001567759,0.05,2506.4,2506.3,10.41449929]
[1747001568075,0.05,2506.4,2506.3,2.41449929]
[1747001568227,0.05,2506.4,2505.1,2.922]
[1747001568228,3.99081784,2505.8,2505.1,2.922]
[1747001568433,3.99042226,2506.1,2505.2,2.922]
[1747001568677,0.05,2506.4,2505.4,0.4033]
[1747001568849,0.05,2506.4,2505.7,0.39908032]
[1747001569171,3.99014304,2506.2,2505.7,1.17202023]
[1747001569544,3.99002542,2506.3,2505.7,1.57110457]
[1747001569745,3.99010454,2506.2,2505.7,1.17202023]
[1747001570465,3.99026402,2506.1,2505.7,1.17202023]
[1747001570967,3.99010454,2506.2,2505.6,8.0]
[1747001571133,3.99090074,2505.7,2505.3,8.0]
[1747001571328,4.80551501,2506.1,2505.3,8.0]
[1747001571627,3.991152,2505.6,2505.2,2.922]
[1747001571853,3.99075214,2505.8,2505.2,1.06381147]
[1747001572063,3.99109359,2505.6,2505.3,8.0]
[1747001572273,3.99097688,2505.7,2505.3,8.0]
[1747001572475,0.8152,2506.1,2505.3,8.0]
[1747001572631,3.99074489,2505.8,2505.4,1.15866485]
[1747001572830,3.99116288,2505.6,2505.3,8.0]
[1747001573046,3.99097342,2505.7,2505.3,8.0]
[1747001573260,0.55,2506.0,2505.3,8.0]
[1747001573456,5.31630074,2505.7,2504.7,0.4033]
[1747001573655,0.55,2505.3,2504.4,0.4033]
[1747001573869,3.99327835,2504.3,2503.7,0.8026982]
[1747001574040,3.99288815,2504.5,2503.8,0.3993926]
[1747001574240,3.99297664,2504.4,2503.9,0.39937427]
[1747001574458,3.99288862,2504.5,2503.9,0.39937427]
[1747001574657,3.99292999,2504.5,2503.7,0.4033]
[1747001574890,3.99283776,2504.5,2504.0,0.39934998]
[1747001575175,3.99283776,2504.5,2503.9,0.39936952]
[1747001575369,3.99218775,2504.9,2504.3,0.39930188]
[1747001575546,3.99218775,2504.9,2504.3,0.39931318]
[1747001575732,3.99218775,2504.9,2504.3,0.43923895]
[1747001575927,4.81660313,2505.1,2504.3,0.43923895]
[1747001576129,3.99173066,2505.2,2504.6,0.39925564]
[1747001576366,3.9915497,2505.3,2504.7,0.39924924]
[1747001576571,3.9915497,2505.3,2504.7,0.43917213]
[1747001576970,0.8247,2505.4,2504.5,0.39927386]
[1747001577173,4.81612445,2505.4,2504.7,0.39923929]
[1747001577353,0.8247,2505.4,2504.5,1.22454607]
[1747001577677,4.81615883,2505.4,2504.8,0.39922491]
[1747001577875,3.99157546,2505.3,2504.8,0.39922491]
[1747001578040,3.99164493,2505.3,2504.7,0.39924233]
[1747001578393,4.81618695,2505.4,2504.8,0.39922747]
[1747001578674,3.99093343,2505.7,2505.2,0.39916819]
[1747001578869,0.8112,2505.8,2505.1,0.43909516]
[1747001578870,4.80194557,2505.8,2505.1,0.43909516]
[1747001579048,3.99108632,2505.6,2505.1,0.43909516]
[1747001579670,3.99108632,2505.6,2505.1,8.43909516]
[1747001579875,3.99106002,2505.6,2505.1,9.17603074]
[1747001580083,0.8112,2505.8,2505.1,9.17603074]
[1747001580277,3.99090074,2505.7,2505.1,9.17603074]
[1747001580594,3.99114063,2505.6,2505.1,8.0]
[1747001580881,3.99040516,2506.1,2505.3,0.4033]
[1747001581037,2.94819596,2506.0,2505.1,8.0]
[1747001581242,3.99146405,2505.4,2505.0,8.0]
[1747001581441,0.79,2505.7,2505.0,8.0]
[1747001581684,4.78094567,2505.7,2505.2,0.39916503]
[1747001581843,0.79,2505.7,2505.2,0.39916101]
[1747001582180,0.79,2505.7,2505.0,8.0]
[1747001582385,3.99121931,2505.5,2504.7,0.4033]
[1747001582586,3.99197727,2505.1,2504.5,0.39926892]
[1747001582787,3.99197727,2505.1,2504.5,0.41248698]
[1747001582946,4.74744117,2505.1,2504.6,0.39926525]
[1747001583143,3.99267254,2504.6,2504.4,0.4033]
[1747001583403,3.99267254,2504.6,2504.1,0.8026394]
[1747001583684,3.9929011,2504.5,2504.1,1.26922111]
[1747001583888,3.99305362,2504.4,2503.9,6.24437501]
[1747001584192,0.8137,2504.6,2503.9,2.923]
[1747001584392,0.55,2504.5,2503.9,2.923]
[1747001584687,3.99304118,2504.4,2504.0,8.0]
[1747001585048,0.55,2504.5,2504.0,8.0]
[1747001585246,0.8035,2505.0,2504.1,0.4033]
[1747001585446,3.9924922,2504.8,2504.2,0.39932908]
[1747001586247,3.9924922,2504.8,2504.2,0.39932912]
[1747001586447,3.9924922,2504.8,2504.2,0.39931514]
[1747001586700,0.8035,2505.0,2504.4,8.0]
[1747001586998,0.755,2505.3,2504.7,0.80254057]
[1747001587146,3.99233805,2504.8,2504.5,2.923]
[1747001587342,3.99233805,2504.8,2504.6,8.0]
[1747001587554,3.99185661,2505.1,2504.6,8.0]
[1747001587779,0.755,2505.3,2504.6,9.13263]
[1747001588609,3.99174304,2505.2,2504.6,9.13263]
[1747001588776,3.99174304,2505.2,2504.6,9.53188335]
[1747001588949,3.99185833,2505.1,2504.6,9.53188335]
[1747001589351,3.99177996,2505.2,2504.7,0.39924903]
[1747001589869,3.99177996,2505.2,2504.6,9.53188833]
[1747001590055,3.99193879,2505.1,2504.6,9.13263]
[1747001590270,3.99177955,2505.2,2504.6,9.53189468]
[1747001590595,3.99158586,2505.3,2504.7,1.68465785]
[1747001590748,3.99180236,2505.2,2504.7,1.28541733]
[1747001591290,3.99209523,2505.0,2504.5,2.923]
[1747001591487,3.99209523,2505.0,2504.4,10.41479687]
[1747001591787,3.99222946,2504.9,2504.4,13.33679687]
[1747001591993,3.99222946,2504.9,2504.6,8.0]
[1747001592195,0.7599,2505.0,2504.6,8.0]
[1747001592353,3.99227716,2504.9,2504.6,8.0]
[1747001592551,4.75196901,2505.0,2504.6,8.0]
[1747001592893,3.99153848,2505.3,2504.6,9.13253]
[1747001593048,3.99169894,2505.2,2504.6,9.13253]
[1747001593250,3.99188949,2505.1,2504.6,9.13253]
[1747001593677,3.99202747,2505.0,2504.6,9.13253]
[1747001593884,3.99194059,2505.1,2504.6,9.13253]
[1747001594080,3.7426346,2505.7,2504.7,0.56075314]
[1747001594394,3.7426346,2505.7,2504.7,0.52083251]
[1747001594552,3.99155978,2505.3,2504.7,0.52083251]
[1747001595092,0.8264,2505.7,2504.8,8.44321744]
[1747001595276,3.99113493,2505.6,2504.8,8.44321744]
[1747001595455,3.99113493,2505.6,2504.9,1.05762547]
[1747001596390,0.7936,2506.0,2505.0,0.44321396]
[1747001596587,3.99075469,2505.8,2505.2,8.0]
[1747001597525,0.7936,2506.0,2505.2,8.0]
[1747001597676,3.98994533,2506.3,2505.3,1.7877]
[1747001597882,3.99068176,2505.9,2505.3,1.7877]
[1747001598915,3.99075847,2505.8,2505.3,2.18684356]
[1747001600011,3.99064823,2505.9,2505.4,0.39912765]
[1747001600177,3.99064823,2505.9,2505.3,10.18684717]
[1747001600915,3.99075905,2505.8,2505.3,2.18684717]
[1747001601078,3.99149827,2505.4,2504.8,0.80252271]
[1747001601278,3.99149827,2505.4,2504.9,0.39921457]
[1747001601715,3.99149827,2505.4,2504.8,0.5533]
[1747001601916,3.99149827,2505.4,2504.9,1.01655048]
[1747001602714,3.99156185,2505.3,2504.9,1.01655048]
[1747001602928,3.99213376,2505.0,2504.8,0.4033]
[1747001603127,3.99213376,2505.0,2504.8,3.3243]
[1747001603302,2.9162346,2505.7,2504.8,3.3243]
[1747001603303,3.99142913,2505.4,2504.8,3.3243]
[1747001603475,3.99125124,2505.5,2504.9,0.03991684]
[1747001603679,3.99139748,2505.4,2504.9,0.537559]
[1747001603906,3.99122026,2505.5,2504.9,0.537559]
[1747001604117,3.99137862,2505.4,2504.9,0.03991684]
[1747001604321,3.99129075,2505.5,2504.9,0.03991684]
[1747001604534,3.99138388,2505.4,2504.9,0.03991684]
[1747001604682,3.99138388,2505.4,2504.9,0.37633852]
[1747001605217,3.99138388,2505.4,2504.9,8.37633852]
[1747001606884,3.99138388,2505.4,2504.9,8.33642168]
[1747001607095,3.99198703,2505.1,2504.8,0.4033]
[1747001607386,3.99167737,2505.3,2504.8,8.4033]
[1747001607591,3.99128789,2505.5,2504.9,0.0399175]
[1747001607801,0.8291,2505.8,2504.9,0.0399175]
[1747001608002,3.99054688,2506.0,2505.2,0.4033]
[1747001608218,0.05,2506.4,2505.5,0.4033]
[1747001608418,0.05,2506.4,2505.7,0.4033]
[1747001608733,0.05,2506.4,2505.9,0.4033]
[1747001608909,0.05,2506.4,2506.0,15.45520476]
[1747001609119,0.05,2506.4,2506.2,8.0]
[1747001609585,4.03979354,2506.4,2506.2,8.0]
[1747001609783,0.05,2506.4,2506.2,8.0]
[1747001611603,3.98994533,2506.3,2506.0,2.922]
[1747001611916,3.98994533,2506.3,2506.2,8.0]
[1747001613242,4.03979853,2506.4,2506.2,8.0]
[1747001613747,3.98994533,2506.3,2506.2,8.0]
[1747001614855,0.05,2506.4,2506.2,8.0]
[1747001615012,0.05,2506.4,2506.2,9.42410007]
[1747001616336,0.05,2506.4,2506.2,11.03630483]
[1747001616650,0.05,2506.4,2506.2,10.99640476]
[1747001616814,0.05,2506.4,2506.3,1.43153344]
[1747001617737,0.05,2506.4,2506.3,11.4470382]
[1747001617898,0.05,2506.4,2506.3,11.40714524]
[1747001620575,0.05,2506.4,2506.3,9.79494048]
[1747001620752,0.05,2506.4,2506.3,9.83482866]
[1747001621072,0.05,2506.4,2506.3,12.71394048]
[1747001623427,0.05,2506.4,2506.3,14.32614524]
[1747001624040,0.05,2506.4,2506.3,14.33614524]
[1747001624240,0.05,2506.4,2506.3,14.88614524]
[1747001624774,0.05,2507.4,2506.7,0.55]
[1747001625083,0.05,2507.4,2506.9,8.0]
[1747001625284,0.05,2507.4,2507.2,0.4033]
[1747001625596,0.05,2507.4,2507.3,0.0398716]
[1747001625887,0.05,2507.4,2507.3,1.65207636]
[1747001626389,0.05,2507.4,2507.3,1.61220476]
[1747001626550,0.05,2507.4,2507.3,10.61375524]
[1747001627275,3.9886922,2507.1,2506.9,2.918]
[1747001627580,0.8091,2507.3,2506.9,2.918]
[1747001628138,0.8091,2507.3,2507.0,8.13]
[1747001628384,0.8091,2507.3,2507.0,9.29873108]
[1747001628555,3.98862357,2507.2,2507.0,9.29873108]
[1747001628940,3.98853614,2507.2,2507.0,9.33861633]
[1747001629140,4.79751548,2507.3,2507.0,9.29873108]
[1747001629341,3.98860663,2507.2,2507.0,9.29873108]
[1747001629569,0.05,2507.4,2507.1,1.22167311]
[1747001629751,4.03833962,2507.4,2507.1,1.22167311]
[1747001629971,3.98843481,2507.3,2507.1,1.22167311]
[1747001630740,3.98851308,2507.2,2507.1,1.22167311]
[1747001630940,3.98851308,2507.2,2507.0,8.0]
[1747001631757,0.05,2507.4,2506.8,11.20421885]
[1747001631982,3.98838181,2507.3,2506.9,0.03988651]
[1747001632280,3.98880861,2507.1,2506.8,11.20421885]
[1747001632454,0.05,2507.4,2506.8,11.20421885]
[1747001632646,3.98875771,2507.1,2506.9,1.57344236]
[1747001632987,0.05,2507.4,2506.8,11.20421885]
[1747001633188,0.05,2507.4,2506.9,0.03988596]
[1747001633348,0.05,2507.4,2507.0,0.4033]
[1747001633548,0.05,2507.4,2507.1,0.03987849]
[1747001634851,0.05,2507.4,2507.2,1.61220476]
[1747001636865,0.05,2507.4,2507.3,12.52920476]
[1747001637205,0.05,2507.4,2507.3,24.93941276]
[1747001637508,0.05,2507.4,2507.3,27.35041276]
[1747001637800,0.05,2507.4,2507.3,24.95941276]
[1747001638198,0.05,2507.4,2507.3,22.04241276]
[1747001638401,0.05,2507.4,2507.3,27.87441276]
[1747001639383,0.05,2507.4,2507.3,27.85441276]
[1747001639582,0.05,2507.4,2507.3,27.30441276]
[1747001640397,0.05,2507.4,2507.3,3.27241276]
[1747001640586,0.05,2507.4,2507.3,9.10441276]
[1747001640927,0.05,2507.4,2507.3,17.10441276]
[1747001641088,0.05,2507.4,2507.3,13.832]
[1747001641293,0.05,2507.4,2507.3,8.0]
[1747001641696,4.03828955,2507.4,2507.1,1.61220476]
[1747001641896,0.05,2507.4,2507.1,1.61220476]
[1747001642697,0.05,2507.4,2507.2,0.4033]
[1747001642893,0.05,2507.4,2507.2,1.44472702]
[1747001643899,0.05,2507.4,2507.3,0.17]
[1747001645512,0.05,2507.4,2507.3,3.084]
[1747001646537,0.05,2507.4,2507.3,4.69620476]
[1747001646738,0.05,2507.4,2507.3,1.78220476]
[1747001646896,4.03819494,2507.4,2507.3,9.78220476]
[1747001647098,4.03819494,2507.4,2507.3,9.61220476]
[1747001647311,0.05,2507.4,2507.3,1.61220476]
[1747001647540,0.05,2507.4,2507.3,9.61220476]
[1747001647697,0.05,2507.4,2507.3,8.0]
[1747001648861,0.02069726,2509.7,2507.8,2.07787373]
[1747001649071,0.02069726,2509.7,2508.1,2.5263045]
[1747001649361,3.41043129,2510.7,2508.8,2.941]
[1747001649362,3.98337595,2510.5,2508.8,2.941]
[1747001649680,0.7723,2510.0,2509.1,0.55]
[1747001649971,0.8023,2510.4,2509.2,0.03983563]
[1747001650129,0.8023,2510.4,2509.1,0.4033]
[1747001650323,0.8023,2510.4,2509.2,8.0]
[1747001650569,0.8023,2510.4,2509.3,0.22070964]
[1747001650758,0.8023,2510.4,2509.3,0.26054833]
[1747001651267,3.98363493,2510.3,2509.3,0.22070964]
[1747001651568,4.78582577,2510.4,2509.3,0.22070964]
[1747001652023,0.8023,2510.4,2509.3,0.22070964]
[1747001652220,0.7706,2509.6,2509.3,3.13370964]
[1747001652852,0.7706,2509.6,2509.3,11.54258636]
[1747001653030,0.7706,2509.6,2509.3,10.913]
[1747001654365,0.7706,2510.0,2509.3,10.913]
[1747001654867,0.7706,2510.0,2509.3,11.13287173]
[1747001656462,4.75479888,2510.0,2509.3,11.13287173]
[1747001656649,0.7706,2510.0,2509.3,8.21987173]
[1747001656856,0.7706,2510.0,2509.3,0.21987173]
[1747001657070,3.98495254,2509.5,2509.1,8.0]
[1747001657230,4.03502863,2509.4,2509.1,8.0]
[1747001658025,0.05,2509.4,2509.1,8.0]
[1747001658655,3.98533397,2509.2,2509.0,8.0]
[1747001658852,3.98533397,2509.2,2509.0,10.912]
[1747001659053,0.8267,2509.3,2509.0,10.912]
[1747001659566,4.81188357,2509.3,2509.0,10.912]
[1747001659867,3.98533952,2509.2,2509.0,10.912]
[1747001660033,4.81195009,2509.3,2509.0,10.912]
[1747001660231,3.98601188,2508.8,2508.1,2.01550476]
[1747001660447,0.8267,2508.6,2508.2,0.12449959]
[1747001660661,4.81309145,2508.6,2508.2,0.12449959]
[1747001660867,4.81309145,2508.6,2508.2,8.12449959]
[1747001661067,3.98676394,2508.3,2508.2,0.12449959]
[1747001661511,3.98669528,2508.4,2508.1,0.22009543]
[1747001661814,3.9868418,2508.3,2508.1,0.22009543]
[1747001662129,0.8267,2508.6,2507.9,2.912]
[1747001662328,0.8267,2508.6,2508.0,8.0]
[1747001662474,4.81313765,2508.6,2508.0,8.03987045]
[1747001662675,3.98679326,2508.3,2508.0,0.03987045]
[1747001662918,3.98702479,2508.2,2507.9,2.912]
[1747001663126,3.98702479,2508.2,2508.0,8.0]
[1747001663282,4.81301957,2508.6,2508.0,8.0]
[1747001663476,3.98707586,2508.2,2508.0,8.0]
[1747001663709,3.98708185,2508.1,2508.0,8.0]
[1747001663942,0.7547,2508.0,2507.2,1.61220476]
[1747001664235,4.74204003,2508.0,2507.4,8.0]
[1747001664537,4.74204003,2508.0,2507.3,6.16810646]
[1747001664538,3.98780619,2507.7,2507.3,6.16810646]
[1747001664732,3.98763515,2507.8,2507.3,6.16810646]
[1747001664931,3.98751684,2507.9,2507.4,8.0]
[1747001665104,3.98768648,2507.8,2507.4,8.0]
[1747001665891,3.98827244,2507.4,2506.7,1.61220476]
[1747001666096,3.98814532,2507.5,2507.0,5.94856764]
[1747001666295,3.98814532,2507.5,2507.1,8.2207095]
[1747001666551,3.98820377,2507.4,2507.1,8.2207095]
[1747001667230,3.98820806,2507.4,2507.1,8.0]
[1747001668139,3.98810492,2507.5,2507.1,8.0]
[1747001668352,0.7796,2507.3,2507.1,8.0]
[1747001668513,0.7796,2507.3,2507.1,2.912]
[1747001668514,4.76796775,2507.3,2507.1,2.912]
[1747001668710,0.20814507,2509.6,2507.3,0.4033]
[1747001668922,0.05,2510.4,2508.4,0.4033]
[1747001669120,0.7796,2509.5,2508.6,8.0]
[1747001669346,0.7796,2509.5,2508.6,3.277]
[1747001669855,0.7796,2509.5,2508.7,0.0398571]
[1747001670161,0.7796,2509.5,2508.5,8.0]
[1747001670307,0.7796,2509.5,2508.6,1.34808064]
[1747001670504,0.7796,2509.5,2508.7,0.0398519]
[1747001670744,0.7599,2509.9,2508.9,8.0]
[1747001670915,0.7599,2509.9,2509.0,0.03984689]
[1747001671107,0.7599,2509.9,2508.9,8.0]
[1747001671304,0.7599,2509.9,2509.0,1.47233809]
[1747001671504,0.7599,2509.9,2509.1,0.03984688]
[1747001673867,0.7599,2509.9,2509.0,0.34443809]
[1747001674553,3.98470769,2509.6,2508.8,0.25983498]
[1747001675861,0.7599,2509.9,2508.8,1.87203974]
[1747001676065,0.7599,2509.9,2508.9,1.85238461]
[1747001676221,0.05,2510.4,2509.0,0.03984696]
[1747001676425,4.77599751,2510.3,2509.0,0.03984696]
[1747001676666,0.7923,2510.3,2509.1,0.9533]
[1747001676832,0.05,2510.4,2509.3,0.55]
[1747001677739,0.05,2510.4,2509.3,0.9533]
[1747001678259,0.05,2510.4,2509.3,1.17328064]
[1747001678426,0.05,2510.4,2509.3,1.29772543]
[1747001679025,0.05,2510.4,2509.3,1.43772543]
[1747001679557,0.05,2510.4,2509.3,1.0933]
[1747001679764,0.05,2510.4,2509.3,0.9533]
[1747001680745,0.05,2510.4,2509.3,1.17328064]
[1747001681573,0.05,2510.4,2509.3,0.9533]
[1747001681886,0.05,2510.4,2509.3,0.99313452]
[1747001682179,0.05,2510.4,2509.3,1.17328064]
[1747001682582,0.05,2510.4,2509.3,20.9854854]
[1747001682745,0.05,2510.4,2509.3,23.12046188]
[1747001682945,0.05,2510.4,2509.3,23.24490667]
[1747001683547,0.05,2510.4,2509.9,0.4033]
[1747001683750,0.05,2510.4,2510.1,8.0]
[1747001684170,0.05,2510.4,2510.2,0.25980646]
[1747001684367,0.05,2510.4,2510.2,1.88760758]
[1747001684641,0.05,2510.4,2510.3,0.21998064]
[1747001685270,0.05,2510.4,2510.3,0.23998064]
[1747001685545,0.05,2510.4,2510.2,1.62780112]
[1747001687784,0.05,2510.4,2510.2,3.195]
[1747001687967,0.7728,2510.3,2509.6,1.61220476]
[1747001688176,0.7728,2510.3,2509.7,6.383]
[1747001688349,0.7728,2510.3,2509.8,0.21934348]
[1747001688550,0.7728,2510.3,2509.8,8.21934348]
[1747001688753,0.7728,2510.3,2509.9,1.46023435]
[1747001689290,0.7728,2510.3,2509.8,1.83154824]
[1747001689447,3.98386182,2510.2,2509.9,3.186]
[1747001689849,0.7728,2510.3,2509.8,1.61220476]
[1747001690045,3.98400859,2510.1,2509.9,0.13]
[1747001690290,3.98381137,2510.2,2509.9,0.13]
[1747001690684,3.98381137,2510.2,2509.8,9.61220476]